{"text_format":"1","workbook":"xlsx","n_sheets":23,"sheets":["Macro9","Macro8","Macro7","Macro6","Macro5","Macro4","Macro3","Macro2","Macro1","Menu","Menu2","Ordenes de Pago","Resp_Ordenes de Pago","Beneficiarios de Pago","Resp_Beneficiarios de Pago","Hoja2","Ayuda1","Ayuda","BANCOS","Macros","BANCOSB","Hoja3","Ayuda_Benef"],"not_rendered":{"charts":0,"images":34,"macros":1,"external_links":3,"defined_names":41,"comments":5,"pivot_tables":0},"unopened":[],"bounds":{"document_bytes":16777216,"sheet_cells":100000,"rows_first":2000,"rows_last":500,"rows_between":2000,"halvings":0,"cell_chars":16384,"cell_head_chars":4096},"cells_cut":0,"cells_raw":0,"read":"whole","date_system":"1900"}

{"sheet":"Macro9","index":0,"n_rows":0,"n_cols":0,"rows_kept":0,"cut":false,"hidden":true,"merged":[]}

{"sheet":"Macro8","index":1,"n_rows":0,"n_cols":0,"rows_kept":0,"cut":false,"hidden":true,"merged":[]}

{"sheet":"Macro7","index":2,"n_rows":0,"n_cols":0,"rows_kept":0,"cut":false,"hidden":true,"merged":[]}

{"sheet":"Macro6","index":3,"n_rows":0,"n_cols":0,"rows_kept":0,"cut":false,"hidden":true,"merged":[]}

{"sheet":"Macro5","index":4,"n_rows":0,"n_cols":0,"rows_kept":0,"cut":false,"hidden":true,"merged":[]}

{"sheet":"Macro4","index":5,"n_rows":0,"n_cols":0,"rows_kept":0,"cut":false,"hidden":true,"merged":[]}

{"sheet":"Macro3","index":6,"n_rows":0,"n_cols":0,"rows_kept":0,"cut":false,"hidden":true,"merged":[]}

{"sheet":"Macro2","index":7,"n_rows":0,"n_cols":0,"rows_kept":0,"cut":false,"hidden":true,"merged":[]}

{"sheet":"Macro1","index":8,"n_rows":0,"n_cols":0,"rows_kept":0,"cut":false,"hidden":true,"merged":[]}

{"sheet":"Menu","index":9,"n_rows":35,"n_cols":10,"rows_kept":35,"cut":false,"hidden":false,"merged":[[31,1,32,11],[34,2,34,3],[34,9,34,10],[5,0,5,14]]}
[1]
[]
[]
[]
[]
["                 SOLICITUD MASIVA DE ORDENES DE PAGOS / REGISTRO BENEFICIARIOS DE PAGOS"]
[]
[]
[]
[]
[]
[]
[]
[]
[]
[]
[]
[]
[]
[]
[]
[]
[]
[]
[]
[]
[]
[]
[]
[]
[]
[null,"NOTA IMPORTANTE: Para que este formulario funcione correctamente debe tener habilitadas las macros, para ello, verifique el nivel de seguridad, siguiendo las instrucciones de acuerdo a la versión de Excel que tenga instalada en su equipo.\n"]
[]
[]
[null,null,"Excel - 2003",null,null,null,"Excel - 2007",null,null,"Excel - 2010"]

{"sheet":"Menu2","index":10,"n_rows":1,"n_cols":1,"rows_kept":1,"cut":false,"hidden":true,"merged":[]}
[1]

{"sheet":"Ordenes de Pago","index":11,"n_rows":38,"n_cols":256,"rows_kept":38,"cut":false,"hidden":false,"merged":[[7,15,7,21],[8,1,8,2],[12,8,12,9],[10,1,10,2],[4,2,4,8],[44,1,44,2],[7,1,7,2],[9,1,9,2],[8,8,8,9],[45,1,45,2],[7,4,7,5],[8,4,8,5],[9,4,9,5],[10,4,10,5],[7,8,7,9],[39,6,39,7],[40,6,40,7],[39,1,39,2],[40,1,40,2]]}
[null,null,null,null,null,null,null,null,null,null,null,null,null,null,null,null,null,null,null,null,1,null,null,1,null,null,null,null,null,null,null,null,null,null,null,null,null,null,null,null,null,null,null,null,null,null,null,null,null,null,null,null,null,null,null,null,null,null,null,null,null,null,null,null,null,null,null,null,null,null,null,null,null,null,null,null,null,null,null,null,null,null,null,null,null,null,null,null,null,null,null,null,null,null,null,null,null,null,null,null,null,null,null,null,null,null,null,null,null,null,null,null,null,null,null,null,null,null,null,null,null,null,null,null,null,null,null,null,null,null,null,null,null,null,null,null,null,null,null,null,null,null,null,null,null,null,null,null,null,null,null,null,null,null,null,null,null,null,null,null,null,null,null,null,null,null,null,null,null,null,null,null,null,null,null,null,null,null,null,null,null,null,null,null,null,null,null,null,null,null,null,null,null,null,null,null,null,null,null,null,null,null,null,null,null,null,null,null,null,null,null,null,null,null,null,null,null,null,null,null,null,null,null,null,null,null,null,null,null,null,null,null,null,null,null,null,null,null,null,null,null,null,null,null,null,null,null,null,null,null,null,null,null,null,null,"1"]
[]
[null,null,null,null,null,null,null,null,null,null,null,null,null,null,null,null,null,null,null,null,null,null,null,1]
[]
[null,null,"SOLICITUD MASIVA DE ORDENES DE PAGOS"]
[]
[]
[null,"DESCRIPCIÓN DE LA OPERACIÓN:",null,"TIPO DE PERSONA:","R.I.F. N°:",null,null,"CANT. DE REGISTROS:","MONTO TOTAL DE LA OPERACIÓN:",null,"MONEDA:",null,null,null,null,"RESUMEN DE LA OPERACIÓN"]
[null,null,null,null,null,null,null,{"$f":"COUNTA(B14:B37)","v":0},{"$f":"SUM(M14:M37)","v":0},null,"VEB"]
[null,"N° DE CONTRATO:",null,"N° DE LOTE / REF. DÉBITO:","FECHA DE ENVÍO:",null,null,null,null,null,null,null,null,null,null,null,null,null,null,null,null,null,null,{"$f":"OR(B9=0,D9=0,E9=0,E11=0,B11=0,D11=0)","v":true}]
[]
[null,null,null,null," "]
[null,"TIPO PERS.:","C.I. / R.I.F N°:","NOMBRE COMPLETO / RAZÓN SOCIAL:","REFERENCIA:","DESCRIPCIÓN:","MODALIDAD DE PAGO:","CÓD. BANCO:","CUENTA A ACREDITAR / N° DE TARJETA:",null,"FECHA VALOR:","FECHA VALOR (SIST.):"," MONTO:","IMPUESTO RETENIDO:","CORREO ELECTRÓNICO:","CORREO ELECTRÓNICO","N° DE TELEF. CELULAR:","N° DE FACTURA ASOCIADO:","MONTO DE LA FACTURA:","MONEDA","FECHA DE FACTURA:","FECHA DE FACTURA (SIST.):","IMPUESTO RETENIDO:"]
[null,null,null,null,null,null,null,null,{"$f":"IF(H14=\"\",\"\",IF(OR(G14=\"BAN\",G14=\"CTA\"),H14,\"\"))","v":""},null,null,null,null,null,null,null,null,null,null,null,null,null,null,{"$f":"AND(OR(LEN(B14)<>0,LEN(D14)<>0,LEN(C14)<>0,LEN(E14)<>0,LEN(F14)<>0,LEN(K14)<>0,LEN(M14)<>0,LEN(N14)<>0,LEN(O14)<>0)=TRUE,Y14=TRUE)","v":false},{"$f":"IF(OR(G14=\"CHQ\",G14=\"EFE\"),TRUE,IF(AND(OR(G14=\"V/M\",G14=\"AME\"),LEN(J14)<>0),TRUE,IF(AND(OR(G14=\"CTA\",G14=\"BAN\",G14=\"TAR\"),AND(LEN(H14)<>0,LEN(J14)<>0)),TRUE,FALSE)))","v":false}]
[null,null,null,null,null,null,null,null,"",null,null,null,null,null,null,null,null,null,null,null,null,null,null,false,false]
[null,null,null,null,null,null,null,null,"",null,null,null,null,null,null,null,null,null,null,null,null,null,null,false,false]
[null,null,null,null,null,null,null,null,"",null,null,null,null,null,null,null,null,null,null,{"$f":"IF(S17=\"\",\"\",\"VEB\")","v":""},null,null,null,false,false]
[null,null,null,null,null,null,null,null,"",null,null,null,null,null,null,null,null,null,null,"",null,null,null,false,false]
[null,null,null,null,null,null,null,null,"",null,null,null,null,null,null,null,null,null,null,"",null,null,null,false,false]
[null,null,null,null,null,null,null,null,"",null,null,null,null,null,null,null,null,null,null,"",null,null,null,false,false]
[null,null,null,null,null,null,null,null,"",null,null,null,null,null,null,null,null,null,null,"",null,null,null,false,false]
[null,null,null,null,null,null,null,null,"",null,null,null,null,null,null,null,null,null,null,"",null,null,null,{"$f":"AND(OR(LEN(B22)<>0,LEN(D22)<>0,LEN(C22)<>0,LEN(E22)<>0,LEN(F22)<>0,LEN(K22)<>0,LEN(M22)<>0,LEN(N22)<>0,LEN(O22)<>0)=TRUE,Y22=TRUE)","v":false},{"$f":"IF(OR(G22=\"CHQ\",G22=\"EFE\"),TRUE,IF(AND(OR(G22=\"V/M\",G22=\"AME\"),LEN(J22)<>0),TRUE,IF(AND(OR(G22=\"CTA\",G22=\"BAN\",G22=\"TAR\"),AND(LEN(H22)<>0,LEN(J22)<>0)),TRUE,FALSE)))","v":false}]
[null,null,null,null,null,null,null,null,"",null,null,null,null,null,null,null,null,null,null,"",null,null,null,false,false]
[null,null,null,null,null,null,null,null,"",null,null,null,null,null,null,null,null,null,null,"",null,null,null,false,false]
[null,null,null,null,null,null,null,null,"",null,null,null,null,null,null,null,null,null,null,"",null,null,null,false,false]
[null,null,null,null,null,null,null,null,"",null,null,null,null,null,null,null,null,null,null,"",null,null,null,false,false]
[null,null,null,null,null,null,null,null,"",null,null,null,null,null,null,null,null,null,null,"",null,null,null,false,false]
[null,null,null,null,null,null,null,null,"",null,null,null,null,null,null,null,null,null,null,null,null,null,null,{"$f":"AND(OR(LEN(B28)<>0,LEN(D28)<>0,LEN(C28)<>0,LEN(E28)<>0,LEN(F28)<>0,LEN(K28)<>0,LEN(M28)<>0,LEN(N28)<>0,LEN(O28)<>0)=TRUE,Y28=TRUE)","v":false},false]
[null,null,null,null,null,null,null,null,"",null,null,null,null,null,null,null,null,null,null,null,null,null,null,false,false]
[null,null,null,null,null,null,null,null,"",null,null,null,null,null,null,null,null,null,null,null,null,null,null,false,false]
[null,null,null,null,null,null,null,null,"",null,null,null,null,null,null,null,null,null,null,null,null,null,null,false,false]
[null,null,null,null,null,null,null,null,"",null,null,null,null,null,null,null,null,null,null,null,null,null,null,false,false]
[null,null,null,null,null,null,null,null,"",null,null,null,null,null,null,null,null,null,null,null,null,null,null,false,false]
[null,null,null,null,null,null,null,null,"",null,null,null,null,null,null,null,null,null,null,null,null,null,null,{"$f":"AND(OR(LEN(B34)<>0,LEN(D34)<>0,LEN(C34)<>0,LEN(E34)<>0,LEN(F34)<>0,LEN(K34)<>0,LEN(M34)<>0,LEN(N34)<>0,LEN(O34)<>0)=TRUE,Y34=TRUE)","v":false},false]
[null,null,null,null,null,null,null,null,{"$f":"IF(H35=\"\",\"\",IF(OR(G35=\"BAN\",G35=\"CTA\"),H35,\"\"))","v":""},null,null,null,null,null,null,null,null,null,null,null,null,null,null,{"$f":"AND(OR(LEN(B35)<>0,LEN(D35)<>0,LEN(C35)<>0,LEN(E35)<>0,LEN(F35)<>0,LEN(K35)<>0,LEN(M35)<>0,LEN(N35)<>0,LEN(O35)<>0)=TRUE,Y35=TRUE)","v":false},{"$f":"IF(OR(G35=\"CHQ\",G35=\"EFE\"),TRUE,IF(AND(OR(G35=\"V/M\",G35=\"AME\"),LEN(J35)<>0),TRUE,IF(AND(OR(G35=\"CTA\",G35=\"BAN\",G35=\"TAR\"),AND(LEN(H35)<>0,LEN(J35)<>0)),TRUE,FALSE)))","v":false}]
[null,null,null,null,null,null,null,null,{"$f":"IF(H36=\"\",\"\",IF(OR(G36=\"BAN\",G36=\"CTA\"),H36,\"\"))","v":""},null,null,null,null,null,null,null,null,null,null,null,null,null,null,{"$f":"AND(OR(LEN(B36)<>0,LEN(D36)<>0,LEN(C36)<>0,LEN(E36)<>0,LEN(F36)<>0,LEN(K36)<>0,LEN(M36)<>0,LEN(N36)<>0,LEN(O36)<>0)=TRUE,Y36=TRUE)","v":false},{"$f":"IF(OR(G36=\"CHQ\",G36=\"EFE\"),TRUE,IF(AND(OR(G36=\"V/M\",G36=\"AME\"),LEN(J36)<>0),TRUE,IF(AND(OR(G36=\"CTA\",G36=\"BAN\",G36=\"TAR\"),AND(LEN(H36)<>0,LEN(J36)<>0)),TRUE,FALSE)))","v":false}]
[null,null,null,null,null,null,null,null,null,null,null,null,null,null,null,null,null,null,null,null,null,null,null,{"$f":"AND(OR(LEN(B37)<>0,LEN(D37)<>0,LEN(C37)<>0,LEN(E37)<>0,LEN(F37)<>0,LEN(K37)<>0,LEN(M37)<>0,LEN(N37)<>0,LEN(O37)<>0)=TRUE,Y37=TRUE)","v":false},false]
[null,null,null,null,null,null,null,null,null,null,null,null,null,null,null,null,null,null,null,null,null,null,null,{"$f":"AND(OR(LEN(B38)<>0,LEN(D38)<>0,LEN(C38)<>0,LEN(E38)<>0,LEN(F38)<>0,LEN(K38)<>0,LEN(M38)<>0,LEN(N38)<>0,LEN(O38)<>0)=TRUE,Y38=TRUE)","v":false},false]

{"sheet":"Resp_Ordenes de Pago","index":12,"n_rows":33,"n_cols":253,"rows_kept":33,"cut":false,"hidden":true,"merged":[[7,19,7,21],[8,19,9,21],[8,18,9,18],[0,0,0,10],[4,2,4,17],[7,0,7,12],[7,13,7,17],[8,5,8,6],[9,0,9,2],[9,3,9,4],[9,5,9,6],[9,7,9,8],[9,10,9,11],[8,0,8,2],[8,10,8,11],[8,3,8,4],[9,15,9,16],[8,7,8,8],[9,13,9,14],[8,22,9,22],[8,15,8,16],[8,13,8,14]]}
[null,null,null,null,null,null,null,null,null,null,null,null,null,null,null,null,null,null,null,1,null,null,null,null,null,null,null,null,null,null,null,null,null,null,null,null,null,null,null,null,null,null,null,null,null,null,null,null,null,null,null,null,null,null,null,null,null,null,null,null,null,null,null,null,null,null,null,null,null,null,null,null,null,null,null,null,null,null,null,null,null,null,null,null,null,null,null,null,null,null,null,null,null,null,null,null,null,null,null,null,null,null,null,null,null,null,null,null,null,null,null,null,null,null,null,null,null,null,null,null,null,null,null,null,null,null,null,null,null,null,null,null,null,null,null,null,null,null,null,null,null,null,null,null,null,null,null,null,null,null,null,null,null,null,null,null,null,null,null,null,null,null,null,null,null,null,null,null,null,null,null,null,null,null,null,null,null,null,null,null,null,null,null,null,null,null,null,null,null,null,null,null,null,null,null,null,null,null,null,null,null,null,null,null,null,null,null,null,null,null,null,null,null,null,null,null,null,null,null,null,null,null,null,null,null,null,null,null,null,null,null,null,null,null,null,null,null,null,null,null,null,null,null,null,null,null,null,null,null,null,null,null,"1"]
[]
[null,null,null,null,null,null,null,null,null,null,null,null,null,null,null,null,null,null,null,1]
[]
[null,null,"DESCARGA SOLICITUD MASIVA DE ORDENES DE PAGOS"]
[]
[]
["DATOS DE LA OPERACIÓN",null,null,null,null,null,null,null,null,null,null,null,null,"RESUMEN DE LA OPERACIÓN",null,null,null,null,"CÓD. RESPUESTA","DESCRIPCIÓN",null,null,"N° LOTE INTERNO BANCO"]
["DESCRIPCIÓN DE LA OPERACIÓN:",null,null,"TIPO DE PERSONA:",null,"R.I.F. N°:",null,"N° DE CONTRATO:",null,null,"N° DE LOTE / REF. DÉBITO:",null,"FECHA DE ENVÍO:","CANT. DE REGISTROS:",null,"MONTO TOTAL DE LA OPERACIÓN:",null,"MONEDA:"]
[]
[null,null,null,null," "]
["TIPO PERS.:","C.I. / R.I.F N°:","NOMBRE COMPLETO / RAZÓN SOCIAL:","REFERENCIA:","DESCRIPCIÓN:","MODALIDAD DE PAGO:","CUENTA A ACREDITAR / N° DE TARJETA:","CÓD. BANCO:","FECHA VALOR:","FECHA VALOR (SIST.):"," MONTO:","IMPUESTO RETENIDO:","CORREO ELECTRÓNICO:","N° DE TELEF. CELULAR:","N° VOLANTE","COD RESPUESTA","DESCRIPCION","COD ERROR","DESCRIPCION ERROR","N° DE FACTURA ASOCIADO:","MONTO DE LA FACTURA:","FECHA DE FACTURA:","IMPUESTO RETENIDO:2"]
[null,null,null,null,null,null,null,{"$f":"IF(G13=\"\",\"\",IF(ISERROR(VLOOKUP(MID(G13,1,4),Bancos,1,FALSE)),\"\",VLOOKUP(MID(G13,1,4),Bancos,1,FALSE)))","v":""}]
[null,null,null,null,null,null,null,""]
[null,null,null,null,null,null,null,""]
[null,null,null,null,null,null,null,""]
[null,null,null,null,null,null,null,""]
[null,null,null,null,null,null,null,""]
[null,null,null,null,null,null,null,""]
[null,null,null,null,null,null,null,""]
[null,null,null,null,null,null,null,""]
[null,null,null,null,null,null,null,""]
[null,null,null,null,null,null,null,""]
[null,null,null,null,null,null,null,""]
[null,null,null,null,null,null,null,""]
[null,null,null,null,null,null,null,""]
[null,null,null,null,null,null,null,""]
[null,null,null,null,null,null,null,""]
[null,null,null,null,null,null,null,""]
[null,null,null,null,null,null,null,""]
[null,null,null,null,null,null,null,""]
[null,null,null,null,null,null,null,""]
[null,null,null,null,null,null,null,""]

{"sheet":"Beneficiarios de Pago","index":13,"n_rows":36,"n_cols":256,"rows_kept":36,"cut":false,"hidden":false,"merged":[[10,14,10,18],[11,7,11,8],[9,7,9,9],[0,0,0,10],[10,0,10,13],[3,1,3,10]]}
[null,null,null,null,null,null,null,null,null,null,null,null,null,null,null,null,null,null,null,null,null,null,null,null,null,null,null,null,null,null,null,null,null,null,null,null,null,null,null,null,null,null,null,null,null,null,null,null,null,null,null,null,null,null,null,null,null,null,null,null,null,null,null,null,null,null,null,null,null,null,null,null,null,null,null,null,null,null,null,null,null,null,null,null,null,null,null,null,null,null,null,null,null,null,null,null,null,null,null,null,null,null,null,null,null,null,null,null,null,null,null,null,null,null,null,null,null,null,null,null,null,null,null,null,null,null,null,null,null,null,null,null,null,null,null,null,null,null,null,null,null,null,null,null,null,null,null,null,null,null,null,null,null,null,null,null,null,null,null,null,null,null,null,null,null,null,null,null,null,null,null,null,null,null,null,null,null,null,null,null,null,null,null,null,null,null,null,null,null,null,null,null,null,null,null,null,null,null,null,null,null,null,null,null,null,null,null,null,null,null,null,null,null,null,null,null,null,null,null,null,null,null,null,null,null,null,null,null,null,null,null,null,null,null,null,null,null,null,null,null,null,null,null,null,null,null,null,null,null,null,null,null,null,null,null,"1"]
[]
[null,null,null,null,null,null,null,null,null,null,null,null,null,null,null,1]
[null,"REGISTRO DE BENEFICIARIOS PARA ÓRDENES DE PAGOS"]
[]
[]
[]
[]
[]
[]
["DATOS DEL BENEFICIARIO",null,null,null,null,null,null,null,null,null,null,null,null,null,"AUTORIZADOS A RETIRAR LOS PAGOS (Opcional)"]
["TIPO DE REGISTRO:","NÚMERO DE CONTRATO:","TIPO DE PERSONA:","C.I. / R.I.F. N°:","NOMBRE COMPLETO / RAZÓN SOCIAL DEL BENEFICIARIO:","MODALIDAD DE PAGO:","CÓD. BANCO:","CUENTA A ACREDITAR / N° DE TARJETA:",null,"STATUS DE BENEFICIARIO:"," MONTO MÁXIMO:","MONEDA:","CORREO ELECTRÓNICO:","N° DE TELEF. CELULAR:","IDENTIFICADOR REGISTRO:","TIPO PERSONA  :","R.I.F. / C.I. N°: ","NOMBRE DEL AUTORIZADO:","STATUS DEL AUTORIZADO:",null,null,null,null,"efe-chq","v/m-ame","cta-ban-tar"]
[null,null,null,null,null,null,null,{"$f":"IF(G13=\"\",\"\",IF(OR(F13=\"BAN\",F13=\"CTA\"),G13,\"\"))","v":""},null,null,null,{"$f":"IF(K13=0,\"\",\"VEB\")","v":""},null,null,null,null,null,null,null,null,null,null,{"$f":"AND(OR(LEN(B13)<>0,LEN(C13)<>0,LEN(E13)<>0,LEN(J13)<>0,LEN(K13)<>0,LEN(M13)<>0,LEN(N13)<>0)=TRUE,X13=TRUE)","v":false},{"$f":"IF(OR(F13=\"CHQ\",F13=\"EFE\"),TRUE,IF(AND(OR(F13=\"V/M\",F13=\"AME\"),LEN(I13)<>0),TRUE,IF(AND(OR(F13=\"CTA\",F13=\"BAN\",F13=\"TAR\"),AND(LEN(G13)<>0,LEN(I13)<>0)),TRUE,FALSE)))","v":false}]
[null,null,null,null,null,null,null,{"$f":"IF(G14=\"\",\"\",IF(OR(F14=\"BAN\",F14=\"CTA\"),G14,\"\"))","v":""},null,null,null,{"$f":"IF(K14=0,\"\",\"VEB\")","v":""},null,null,null,null,null,null,null,null,null,null,{"$f":"AND(OR(LEN(B14)<>0,LEN(C14)<>0,LEN(E14)<>0,LEN(J14)<>0,LEN(K14)<>0,LEN(M14)<>0,LEN(N14)<>0)=TRUE,X14=TRUE)","v":false},{"$f":"IF(OR(F14=\"CHQ\",F14=\"EFE\"),TRUE,IF(AND(OR(F14=\"V/M\",F14=\"AME\"),LEN(I14)<>0),TRUE,IF(AND(OR(F14=\"CTA\",F14=\"BAN\",F14=\"TAR\"),AND(LEN(G14)<>0,LEN(I14)<>0)),TRUE,FALSE)))","v":false}]
[null,null,null,null,null,null,null,"",null,null,null,"",null,null,null,null,null,null,null,null,null,null,false,false]
[null,null,null,null,null,null,null,"",null,null,null,"",null,null,null,null,null,null,null,null,null,null,false,false]
[null,null,null,null,null,null,null,"",null,null,null,"",null,null,null,null,null,null,null,null,null,null,false,false]
[null,null,null,null,null,null,null,"",null,null,null,"",null,null,null,null,null,null,null,null,null,null,false,false]
[null,null,null,null,null,null,null,"",null,null,null,"",null,null,null,null,null,null,null,null,null,null,false,false]
[null,null,null,null,null,null,null,"",null,null,null,"",null,null,null,null,null,null,null,null,null,null,false,false]
[null,null,null,null,null,null,null,"",null,null,null,"",null,null,null,null,null,null,null,null,null,null,false,false]
[null,null,null,null,null,null,null,"",null,null,null,"",null,null,null,null,null,null,null,null,null,null,false,false]
[null,null,null,null,null,null,null,"",null,null,null,"",null,null,null,null,null,null,null,null,null,null,false,false]
[null,null,null,null,null,null,null,"",null,null,null,"",null,null,null,null,null,null,null,null,null,null,false,false]
[null,null,null,null,null,null,null,"",null,null,null,"",null,null,null,null,null,null,null,null,null,null,false,false]
[null,null,null,null,null,null,null,"",null,null,null,"",null,null,null,null,null,null,null,null,null,null,false,false]
[null,null,null,null,null,null,null,"",null,null,null,"",null,null,null,null,null,null,null,null,null,null,false,false]
[null,null,null,null,null,null,null,"",null,null,null,"",null,null,null,null,null,null,null,null,null,null,false,false]
[null,null,null,null,null,null,null,"",null,null,null,"",null,null,null,null,null,null,null,null,null,null,false,false]
[null,null,null,null,null,null,null,"",null,null,null,"",null,null,null,null,null,null,null,null,null,null,false,false]
[null,null,null,null,null,null,null,"",null,null,null,"",null,null,null,null,null,null,null,null,null,null,false,false]
[null,null,null,null,null,null,null,"",null,null,null,"",null,null,null,null,null,null,null,null,null,null,false,false]
[null,null,null,null,null,null,null,"",null,null,null,"",null,null,null,null,null,null,null,null,null,null,false,false]
[null,null,null,null,null,null,null,"",null,null,null,"",null,null,null,null,null,null,null,null,null,null,{"$f":"AND(OR(LEN(B34)<>0,LEN(C34)<>0,LEN(E34)<>0,LEN(J34)<>0,LEN(K34)<>0,LEN(M34)<>0,LEN(N34)<>0)=TRUE,X34=TRUE)","v":false},false]
[null,null,null,null,null,null,null,"",null,null,null,"",null,null,null,null,null,null,null,null,null,null,{"$f":"AND(OR(LEN(B35)<>0,LEN(C35)<>0,LEN(E35)<>0,LEN(J35)<>0,LEN(K35)<>0,LEN(M35)<>0,LEN(N35)<>0)=TRUE,X35=TRUE)","v":false},false]
[null,null,null,null,null,null,null,"",null,null,null,"",null,null,null,null,null,null,null,null,null,null,{"$f":"AND(OR(LEN(B36)<>0,LEN(C36)<>0,LEN(E36)<>0,LEN(J36)<>0,LEN(K36)<>0,LEN(M36)<>0,LEN(N36)<>0)=TRUE,X36=TRUE)","v":false},{"$f":"IF(OR(F36=\"CHQ\",F36=\"EFE\"),TRUE,IF(AND(OR(F36=\"V/M\",F36=\"AME\"),LEN(I36)<>0),TRUE,IF(AND(OR(F36=\"CTA\",F36=\"BAN\",F36=\"TAR\"),AND(LEN(G36)<>0,LEN(I36)<>0)),TRUE,FALSE)))","v":false}]

{"sheet":"Resp_Beneficiarios de Pago","index":14,"n_rows":9,"n_cols":22,"rows_kept":9,"cut":false,"hidden":true,"merged":[[0,0,0,9],[4,1,4,12],[7,0,7,12],[7,17,7,21],[7,13,7,16]]}
[]
[]
[null,null,null,null,null,null,null,null,null,null,null,null,null,null,null,null,null,null,1]
[]
[null,"DESCARGA REGISTRO DE BENEFICIARIOS PARA ÓRDENES DE PAGOS"]
[]
[]
["DATOS DEL BENEFICIARIO",null,null,null,null,null,null,null,null,null,null,null,null,"DETALLE DE RESPUESTA",null,null,null,"AUTORIZADOS A RETIRAR LOS PAGOS (Opcional)"]
["TIPO DE REGISTRO:","NÚMERO DE CONTRATO:","TIPO DE PERSONA:","C.I. / R.I.F. N°:","NOMBRE COMPLETO / RAZÓN SOCIAL DEL BENEFICIARIO:","MODALIDAD DE PAGO:","CUENTA A ACREDITAR / N° DE TARJETA:","CÓD. BANCO:","STATUS DE BENEFICIARIO:"," MONTO MÁXIMO:","MONEDA:","CORREO ELECTRÓNICO:","N° DE TELEF. CELULAR:","CÓD. RESPUESTA","DESCRIPCIÓN","CÓD. RECHAZO","DESCRIPCIÓN RECHAZO","IDENTIFICADOR REGISTRO:","TIPO PERSONA  :","R.I.F. / C.I. N°: ","NOMBRE DEL AUTORIZADO:","STATUS DEL AUTORIZADO:"]

{"sheet":"Hoja2","index":15,"n_rows":31,"n_cols":14,"rows_kept":31,"cut":false,"hidden":true,"merged":[[14,0,14,2]]}
["Tipo Persona",null,"Modalidad",null,"Mod_bod",null,"_Null",null,"Descripción de la Operación",null,null,"Tipo Persona(encabezado)",null,"Status Beneficiario"]
[]
["V",null,"CTA",null,"CTA",null,null,null,"Nómina",null,null,"R",null,"ACTIVO"]
["E",null,"BAN",null,"BAN",null,null,null,"Proveedores",null,null,"J",null,"INACTIVO"]
["P",null,"CHQ",null,"CHQ",null,null,null,null,null,null,"G"]
["R",null,"EFE",null,"EFE"]
["J",null,"TAR",null,"TAR"]
["G",null,"AME",null,"V/M"]
[null,null,"V/M"]
[]
[]
[]
[]
[]
["Variables"]
["Linea de Inicio Orden de Pago",null,{"$f":"CELL(\"fila\",'Ordenes de Pago'!B13)","v":13}]
["Linea de Finaliz.",null,{"$f":"CELL(\"fila\",'Ordenes de Pago'!A37)","v":37}]
[]
["Linea de Inicio Beneficiarios",null,{"$f":"CELL(\"fila\",'Beneficiarios de Pago'!A12)","v":12}]
["Linea de Finaliz.",null,{"$f":"CELL(\"fila\",'Beneficiarios de Pago'!A37)","v":37}]
[]
["lineas/insertar",null,2]
[]
["Banco",null,3]
[]
["Linea del grupo final",null,{"$f":"CELL(\"fila\",'Ordenes de Pago'!B41:C41)","v":41}]
[]
[]
["http://support.microsoft.com/kb/269370/es"]
["http://jldexcelsp.blogspot.com/2009/07/numeros-grandes-en-excel-primera-nota.html"]
["http://precisioncalc.com/Excel97free.html"]

{"sheet":"Ayuda1","index":16,"n_rows":113,"n_cols":8,"rows_kept":113,"cut":false,"hidden":true,"merged":[[6,0,6,8],[50,1,50,3],[50,5,50,8],[14,7,15,7],[25,7,26,7],[49,1,49,3],[49,5,49,8],[58,7,59,7],[72,7,73,7],[105,0,105,8],[7,0,7,8],[52,0,52,8],[51,0,51,8],[10,0,10,8],[23,0,23,8]]}
[]
[]
[]
[]
[]
[]
["Formato Archivo Ordenes de Pago  "]
["(Del Cliente al Banco)"]
[]
[]
["Registro de encabezado o header TIPO = 01. Longitud 250"]
[null,"Nombre del Campo","Longitud ","Tipo","Decimal","Requerido","Descripción/Valor","Ejemplo"]
[1,"TIPO DE REGISTRO",2,"N","N/A","Sí","Identificación el encabezado del lote","01"]
[{"$f":"A13+1","v":2},"DESCRIPCION LOTE",20,"A","N/A","Sí","Debe decir: \"Proveedores\" o \"Nomina\"","PROVEEDORES"]
[{"$f":"A14+1","v":3},"TIPO PERSONA (Ordenante)",1,"A","N/A","Sí","Calificador (V-Venezolano,E-Extranjero ó P-Pasaporte)  Para el caso de RIF: Calificador (J-Juridico, G-Gobierno) ","J012345678     V006117681"]
[4,"NUMERO RIF/CI (Ordenante)",9,"N","N/A","Sí","Número RIF/CI"]
[5,"NÚMERO DE CONTRATO",17,"N","N/A","Sí","Número de la negociación","90045678901234567"]
[6,"NÚMERO DE LOTE / REFERENCIA DEBITO",9,"N","N/A","Sí","Número del Lote. Refrencia del débito",123456789]
[7,"FECHA DE ENVÍO",8,"N","N/A","Sí","Fecha de envío del lote. Debe estar en formato yyyymmdd","20100530"]
[8,"CANTIDAD DE OPERACIONES",6,"N","N/A","Sí","Cantidad de pagos en el lote (regsitros de detalle)","138"]
[9,"MONTO TOTAL",17,"N",2,"Sí","Monto total del lote de pagos","90000000090069700085"]
[10,"MONEDA",3,"N","N/A","Sí","Moneda actual disponible Bs.","VEB"]
[null,"FILLER",{"$f":"250-(SUM(C13:C22))","v":158}," "," ","Sí","Uso futuro"]
["Registro de Detalle por cada pago en lote TIPO=02. Longitud 250"]
[1,"TIPO REGISTRO",2,"A","N/A","Sí","Identificación de detalle. Pueden haber tantos registros de detalle como pagos se requieran en el lote.","02"]
[{"$f":"A25+1","v":2},"TIPO PERSONA (Beneficiario)",1,"A","N/A","Sí","Calificador (V-Venezolano,E-Extranjero ó P-Pasaporte)  Para el caso de RIF: Calificador (J-Juridico, G-Gobierno) ","J012345678     V006117681"]
[null,"NUMERO RIF/CI (Beneficiario)",9,"N","N/A","Sí","Número RIF/CI"]
[{"$f":"A26+1","v":3},"NOMBRE DEL BENEFICIARIO",60,"A","N/A","Sí","Nombre del Beneficiario del crédito. Obligatorio cuando el beneficiario no está registrado o si la modalidad de pago es CHQ o EFE","Jose Herrera Cortez"]
[4,"REFERENCIA DE LA OPERACIÓN",9,"N","N/A","Sí","Numero de Referencia del Crédito",123456789]
[5,"DESCRIPCION OPERACIÓN",30,"A","N/A","Sí","Descripción de la Operación","texto libre"]
[6,"MODALIDAD DE PAGO",3,"A","N/A","Sí","Valores: CTA Cuenta mismo bancos - BAN cuenta otro bancos - CHQ Cheque de Gerencia - EFE Efectivo - TAR  TC Visa / Master Otros bancos - AME TC American Express-  V/M TC Visa / Master mismo Banco,  si el beneficiario no está registrado","CTA"]
[7,"NUMERO DE CUENTA ó TARJETA DE CRÉDITO",20,"N","N/A","Sí","Numero de la cuenta a acreditar. Obligatorio para Abono en cuenta mismo banco, otros bancos y tarjetas de crédito, si el beneficiario no está registrado ","Ejemplos:\n01080265007712345678 00000377003480751006 00005466205600823018"]
[8,"CODIGO DE BANCO",4,"N","N/A","Sí","Código del Banco"," 0108"]
[9,"FECHA VALOR",8,"N","N/A","Sí","Fecha de pago. Debe estar en formato yyyymmdd","20100530"]
[10,"MONTO",15,"N",2,"Sí","Monto del pago",1400075]
[11,"MONEDA",3,"N","N/A","Sí","Moneda actual disponible Bs.","VEB"]
[12,"IMPUESTO RETENIDO",15,"N",2,"No","Monto del impuesto retebido en el documento asociado al pago","168009"]
[13,"EMAIL",40,"A","N/A","No","Dirección email del beneficiario","joseh.cortez@gmail.com"]
[14,"CELULAR",11,"N","N/A","No","Teléfono celular para envío de SMS","04141234567"]
[null,"FILLER",{"$f":"250-(SUM(C25:C39))","v":20}," "," ","Sí","Uso futuro"]
["Documentos asociados al pago TIPO=03 (Opcional)"]
[1,"IDENTIFICADOR REGISTRO",2,"A","N/A","Sí","Identificación de documentos. Puede haber mas d eun (1) dpcumento por cada pago","03"]
[{"$f":"A42+1","v":2},"NÚMERO DE FACTURA O DOCUMENTO.",20,"A","N/A","Sí","Número o referencia del documento","A-12348-PEDIDO"]
[{"$f":"A43+1","v":3},"MONTO FACTURA",15,"A",2,"Sí","Monto original del documento",1400075]
[{"$f":"A44+1","v":4},"MONEDA",3,"N","N/A","Sí","Moneda actual disponible Bs.","VEB"]
[{"$f":"A45+1","v":5},"FECHA FACTURA",8,"N","N/A","Sí","Fecha del documento / factura.   yyyy/mm/dd","2010/04/27"]
[{"$f":"A46+1","v":6},"IMPUESTO RETENIDO",15,"N",2,"No","Monto del impuesto retebido en la factura","168009"]
[null,"FILLER",{"$f":"250-(SUM(C42:C47))","v":187}," "," ","Sí","Uso futuro"]
[]
[]
[]
["Formato Archivo Ordenes de Pago"]
["(Del Banco al Cliente)"]
[]
[null,"Nombre del Campo","Longitud ","Tipo","Decimal","Requerido","Descripción/Valor","Ejemplo"]
["Registro de encabezado o header TIPO = 01. Longitud 250"]
[1,"TIPO DE REGISTRO",2,"N","N/A","Sí","Identificación el encabezado del lote","01"]
[{"$f":"A57+1","v":2},"DESCRIPCION LOTE",20,"A","N/A","Sí","Debe decir: \"Proveedores\" o \"Nomina\"","PROVEEDORES"]
[3,"TIPO PERSONA (Ordenante)",1,"A","N/A","Sí","Calificador (V-Venezolano,E-Extranjero ó P-Pasaporte)  Para el caso de RIF: Calificador (J-Juridico, G-Gobierno) ","J012345678     V006117681"]
[4,"NUMERO RIF/CI (Ordenante)",9,"N","N/A","Sí","Número RIF/CI"]
[5,"NÚMERO DE CONTRATO",17,"N","N/A","Sí","Número de la negociación","90045678901234567"]
[6,"NÚMERO DE LOTE / REFERENCIA DEBITO",9,"N","N/A","Sí","Número del Lote. Refrencia del débito",123456789]
[7,"FECHA DE ENVÍO",8,"N","N/A","Sí","Fecha de envío del lote. Debe estar en formato yyyymmdd","20100530"]
[8,"CANTIDAD DE OPERACIONES",6,"N","N/A","Sí","Cantidad de pagos en el lote (regsitros de detalle)","138"]
[9,"MONTO TOTAL",17,"N",2,"Sí","Monto total del lote de pagos","90000000090069700085"]
[10,"MONEDA",3,"N","N/A","Sí","Moneda actual disponible Bs.","VEB"]
[11,"COD RESPUESTA",2,"N","N/A","Sí","Será aportado por el Banco"]
[12,"DESCRIPCION",20,"A","N/A","Sí","Será aportado por el Banco"]
[13,"Nro. Lote interno Banco",9,"N","N/A","Sí","Será aportado por el Banco"]
[null,"FILLER",{"$f":"250-(SUM(C57:C69))","v":127}," "," ","Sí","Uso futuro"]
["Registro de Detalle por cada pago en lote TIPO=02. Longitud 302"]
[1,"TIPO REGISTRO",2,"A","N/A","Sí","Identificación de detalle. Pueden haber tantos registros de detalle como pagos se requieran en el lote.","02"]
[{"$f":"A72+1","v":2},"TIPO PERSONA (Beneficiario)",1,"A","N/A","Sí","Calificador (V-Venezolano,E-Extranjero ó P-Pasaporte)  Para el caso de RIF: Calificador (J-Juridico, G-Gobierno) ","J012345678     V006117681"]
[3,"NUMERO RIF/CI  (Beneficiario)",9,"N","N/A","Sí","Número RIF/CI"]
[4,"NOMBRE DEL BENEFICIARIO",60,"A","N/A","Sí","Nombre del Beneficiario del crédito. Obligatorio cuando el beneficiario no está registrado o si la modalidad de pago es CHQ o EFE","Jose Herrera Cortez"]
[5,"REFERENCIA DE LA OPERACIÓN",9,"N","N/A","Sí","Numero de Referencia del Crédito",123456789]
[6,"DESCRIPCION OPERACIÓN",30,"A","N/A","Sí","Descripción de la Operación","texto libre"]
[7,"MODALIDAD DE PAGO",3,"A","N/A","Sí","Valores: CTA Cuenta mismo bancos - BAN cuenta otro bancos - CHQ Cheque de Gerencia - EFE Efectivo - TAR  TC Visa / Master Otros bancos - AME TC American Express-  V/M TC Visa / Master mismo Banco,  si el beneficiario no está registrado","CTA"]
[8,"NUMERO DE CUENTA ó TARJETA DE CRÉDITO",20,"N","N/A","Sí","Numero de la cuenta a acreditar. Obligatorio para Abono en cuenta mismo banco, otros bancos y tarjetas de crédito, si el beneficiario no está registrado ","Ejemplos:\n01080265007712345678 00000377003480751006 00005466205600823018"]
[9,"CODIGO DE BANCO",4,"N","N/A","Sí","Código del Banco"," 0108"]
[10,"FECHA VALOR",8,"N","N/A","Sí","Fecha de pago. Debe estar en formato yyyymmdd","20100530"]
[11,"MONTO",15,"N",2,"Sí","Monto del pago",1400075]
[12,"MONEDA",3,"N","N/A","Sí","Moneda actual disponible Bs.","VEB"]
[13,"IMPUESTO RETENIDO",15,"N",2,"No","Monto del impuesto retebido en el documento asociado al pago","168009"]
[14,"EMAIL",40,"A","N/A","No","Dirección email del beneficiario","joseh.cortez@gmail.com"]
[15,"CELULAR",11,"N","N/A","No","Teléfono celular para envío de SMS","04141234567"]
[16,"NRO. VOLANTE",8,"N","N/A","Sí","identificación del pago en taquilla mediante cheque"]
[17,"COD RESPUESTA",2,"N","N/A","Sí","Será aportado por el Banco"]
[18,"DESCRIPCION",30,"A","N/A","Sí","Será aportado por el Banco"]
[19,"COD ERROR",2,"N","N/A","NO","Será aportado por el Banco"]
[20,"DESCRIPCION ERROR",30,"A","N/A","NO","Será aportado por el Banco"," "]
["Documentos asociados al pago TIPO=03 (Opcional)"]
[1,"IDENTIFICADOR REGISTRO",2,"A","N/A","Sí","Identificación de documentos. Puede haber mas d eun (1) dpcumento por cada pago","03"]
[{"$f":"A93+1","v":2},"NÚMERO DE FACTURA O DOCUMENTO.",20,"A","N/A","Sí","Número o referencia del documento","A-12348-PEDIDO"]
[{"$f":"A94+1","v":3},"MONTO FACTURA",15,"A",2,"Sí","Monto original del documento",1400075]
[{"$f":"A95+1","v":4},"MONEDA",3,"N","N/A","Sí","Moneda actual disponible Bs.","VEB"]
[{"$f":"A96+1","v":5},"FECHA FACTURA",8,"N","N/A","Sí","Fecha del documento / factura.   yyyy/mm/dd","2010/04/27"]
[{"$f":"A97+1","v":6},"IMPUESTO RETENIDO",15,"N",2,"No","Monto del impuesto retebido en la factura","168009"]
[null,"FILLER",{"$f":"250-(SUM(C93:C98))","v":187}," "," ","Sí","Uso futuro"]
["El archivo de respuesta tendrá la misma información, incorporando en el regsitro de encabezado y detalle:"]
[null,"• Código respuesta"]
[null,"• Descripción respuesta"]
[]
["nota: los campos señalados en gris, por el momento no serán validados por el aplicativo"]
[]
["  Observaciones:"]
[null,"Debe ser un archivo de texto."]
[null,"Los campos numéricos(N), deben ir alineados a la derecha y completados con ceros a la izquierda."]
[null,"Los campos alfanuméricos(A), deben ir alineados a la izquierda."]
[null,"Caracteres y dígitos permitidos:"]
[null,"Alfanuméricos(A):  /abcdefghijklmnopqrstuvwxyz ABCDEFGHIJKLMNOPQRSTUVWXYZ."]
[null,"Numéricos(N):  0123456789."]
[null,"Cada registro debe terminar con CR(Carrige Return), LF(Line Feed)."]

{"sheet":"Ayuda","index":17,"n_rows":110,"n_cols":8,"rows_kept":110,"cut":false,"hidden":false,"merged":[[3,0,3,8],[4,0,4,8],[7,0,7,8],[11,7,12,7],[20,0,20,8],[22,7,23,7],[55,7,56,7],[69,7,70,7],[102,0,102,8],[51,0,51,8],[46,1,46,3],[46,5,46,8],[47,1,47,3],[47,5,47,8],[48,0,48,8],[49,0,49,8]]}
[]
[]
[]
["Formato Archivo Ordenes de Pago  "]
["(Del Cliente al Banco)"]
[]
[]
["Registro de encabezado o header TIPO = 01. Longitud 250"]
[null,"Nombre del Campo","Longitud ","Tipo","Decimal","Requerido","Descripción/Valor","Ejemplo"]
[1,"TIPO DE REGISTRO",2,"N","N/A","Sí","Identificación el encabezado del lote","01"]
[{"$f":"A10+1","v":2},"DESCRIPCION LOTE",20,"A","N/A","Sí","Debe decir: \"Proveedores\" o \"Nomina\"","PROVEEDORES"]
[{"$f":"A11+1","v":3},"TIPO PERSONA (Ordenante)",1,"A","N/A","Sí","Calificador (V-Venezolano,E-Extranjero ó P-Pasaporte)  Para el caso de RIF: Calificador (J-Juridico, G-Gobierno) ","J012345678     V006117681"]
[4,"NUMERO RIF/CI (Ordenante)",9,"N","N/A","Sí","Número RIF/CI"]
[5,"NÚMERO DE CONTRATO",17,"N","N/A","Sí","Número de la negociación","90045678901234567"]
[6,"NÚMERO DE LOTE / REFERENCIA DEBITO",9,"N","N/A","Sí","Número del Lote. Referencia del débito. Será utilizada en el esatdo de cuenta (modaldiad 1:n)",123456789]
[7,"FECHA DE ENVÍO",8,"N","N/A","Sí","Fecha de envío del lote. Debe estar en formato yyyymmdd","20100530"]
[8,"CANTIDAD DE OPERACIONES",6,"N","N/A","Sí","Cantidad de pagos en el lote (regsitros de detalle)","138"]
[9,"MONTO TOTAL",17,"N",2,"Sí","Monto total del lote de pagos (Incluye los decimales sin separador). Monto expresado en el ejemplo: 100.563,51","10056351"]
[10,"MONEDA",3,"N","N/A","Sí","Moneda actual disponible Bs.","VEB"]
[null,"FILLER",{"$f":"250-(SUM(C10:C19))","v":158}," "," ","Sí","Uso futuro"]
["Registro de Detalle por cada pago en lote TIPO=02. Longitud 250"]
[1,"TIPO REGISTRO",2,"A","N/A","Sí","Identificación de detalle. Pueden haber tantos registros de detalle como pagos se requieran en el lote.","02"]
[{"$f":"A22+1","v":2},"TIPO PERSONA (Beneficiario)",1,"A","N/A","Sí","Calificador (V-Venezolano,E-Extranjero ó P-Pasaporte)  Para el caso de RIF: Calificador (J-Juridico, G-Gobierno) ","J012345678     V006117681"]
[3,"NUMERO RIF/CI (Beneficiario)",9,"N","N/A","Sí","Número RIF/CI"]
[4,"NOMBRE DEL BENEFICIARIO",60,"A","N/A","Sí","Nombre del Beneficiario del crédito. Obligatorio cuando el beneficiario no está registrado o si la modalidad de pago es CHQ o EFE","Jose Herrera Cortez"]
[5,"REFERENCIA DE LA OPERACIÓN",9,"N","N/A","No","Numero de Referencia del Crédito a ser utilizada en el estado de cuenta (modalidad 1:1)",123456789]
[6,"DESCRIPCION OPERACIÓN",30,"A","N/A","No","Descripción de la Operación","texto libre"]
[7,"MODALIDAD DE PAGO",3,"A","N/A","Sí","Valores: CTA Cuenta mismo bancos - BAN cuenta otro bancos - CHQ Cheque de Gerencia - EFE Efectivo - TAR  TC Visa / Master Otros bancos - AME TC American Express-  V/M TC Visa / Master mismo Banco,  si el beneficiario no está registrado","CTA"]
[8,"NUMERO DE CUENTA ó TARJETA DE CRÉDITO",20,"N","N/A","Sí","Numero de la cuenta a acreditar. Obligatorio para Abono en cuenta mismo banco, otros bancos y tarjetas de crédito, si el beneficiario no está registrado ","Ejemplos:\n01080265007712345678 00000377003480751006 00005466205600823018"]
[9,"CODIGO DE BANCO",4,"N","N/A","Sí","Código del Banco. "," 0108"]
[10,"FECHA VALOR",8,"N","N/A","Sí","Fecha de pago. Debe estar en formato yyyymmdd","20100530"]
[11,"MONTO",15,"N",2,"Sí","Monto del pago. Incluye los decimales. Monto expresado en ejemplo: Bs. 14.000,75",1400075]
[12,"MONEDA",3,"N","N/A","Sí","Moneda actual disponible Bs.","VEB"]
[13,"IMPUESTO RETENIDO",15,"N",2,"No","Monto del impuesto retenido en el documento asociado al pago Bs. 1.680,09","168009"]
[14,"EMAIL",40,"A","N/A","No","Dirección email del beneficiario","joseh.cortez@gmail.com"]
[15,"CELULAR",11,"N","N/A","No","Teléfono celular para envío de SMS","04141234567"]
[null,"FILLER",{"$f":"250-(SUM(C22:C36))","v":20}," "," ","Sí","Uso futuro"]
["Documentos asociados al pago TIPO=03 (Opcional)"]
[1,"IDENTIFICADOR REGISTRO",2,"A","N/A","No","Identificación de documentos. Puede haber mas de un (1) dpcumento por cada pago","03"]
[{"$f":"A39+1","v":2},"NÚMERO DE FACTURA O DOCUMENTO.",20,"A","N/A","No","Número o referencia del documento","A-12348-PEDIDO"]
[{"$f":"A40+1","v":3},"MONTO FACTURA",15,"A",2,"No","Monto original del documento",1400075]
[{"$f":"A41+1","v":4},"MONEDA",3,"N","N/A","No","Moneda actual disponible Bs.","VEB"]
[{"$f":"A42+1","v":5},"FECHA FACTURA",8,"N","N/A","No","Fecha del documento / factura.   yyyy/mm/dd","2010/04/27"]
[{"$f":"A43+1","v":6},"IMPUESTO RETENIDO",15,"N",2,"No","Monto del impuesto retebido en la factura","168009"]
[null,"FILLER",{"$f":"250-(SUM(C39:C44))","v":187}," "," ","Sí","Uso futuro"]
[]
[]
[]
["Formato Archivo Ordenes de Pago"]
["(Del Banco al Cliente)"]
[]
["Registro de encabezado o header TIPO = 01. Longitud 1000"]
[null,"Nombre del Campo","Longitud ","Tipo","Decimal","Requerido","Descripción/Valor","Ejemplo"]
[1,"TIPO DE REGISTRO",2,"N","N/A","Sí","Identificación el encabezado del lote","01"]
[{"$f":"A54+1","v":2},"DESCRIPCION LOTE",20,"A","N/A","Sí","Debe decir: \"Proveedores\" o \"Nomina\"","PROVEEDORES"]
[3,"TIPO PERSONA (Ordenante)",1,"A","N/A","Sí","Calificador (V-Venezolano,E-Extranjero ó P-Pasaporte)  Para el caso de RIF: Calificador (J-Juridico, G-Gobierno) ","J012345678     V006117681"]
[4,"NUMERO RIF/CI (Ordenante)",9,"N","N/A","Sí","Número RIF/CI"]
[5,"NÚMERO DE CONTRATO",17,"N","N/A","Sí","Número de la negociación","90045678901234567"]
[6,"NÚMERO DE LOTE / REFERENCIA DEBITO",9,"N","N/A","Sí","Número del Lote. Referencia del débito. Será utilizada en el esatdo de cuenta (modaldiad 1:n)",123456789]
[7,"FECHA DE ENVÍO",8,"N","N/A","Sí","Fecha de envío del lote. Debe estar en formato yyyymmdd","20100530"]
[8,"CANTIDAD DE OPERACIONES",6,"N","N/A","Sí","Cantidad de pagos en el lote (regsitros de detalle)","138"]
[9,"MONTO TOTAL",17,"N",2,"Sí","Monto total del lote de pagos (Incluye los decimales sin separador). Monto expresado en el ejemplo: 100.563,51","10056351"]
[10,"MONEDA",3,"N","N/A","Sí","Moneda actual disponible Bs.","VEB"]
[11,"COD RESPUESTA",2,"N","N/A","Sí","Será aportado por el Banco"]
[12,"DESCRIPCION",20,"A","N/A","Sí","Será aportado por el Banco"]
[13,"Nro. Lote interno Banco",9,"N","N/A","Sí","Será aportado por el Banco"]
[null,"FILLER",{"$f":"1000-(SUM(C54:C66))","v":877}," "," ","Sí","Uso futuro"]
["Registro de Detalle por cada pago en lote TIPO=02. Longitud 1000"]
[1,"TIPO REGISTRO",2,"A","N/A","Sí","Identificación de detalle. Pueden haber tantos registros de detalle como pagos se requieran en el lote.","02"]
[{"$f":"A69+1","v":2},"TIPO PERSONA (Beneficiario)",1,"A","N/A","Sí","Calificador (V-Venezolano,E-Extranjero ó P-Pasaporte)  Para el caso de RIF: Calificador (J-Juridico, G-Gobierno) ","J012345678     V006117681"]
[3,"NUMERO RIF/CI  (Beneficiario)",9,"N","N/A","Sí","Número RIF/CI"]
[4,"NOMBRE DEL BENEFICIARIO",60,"A","N/A","Sí","Nombre del Beneficiario del crédito. Obligatorio cuando el beneficiario no está registrado o si la modalidad de pago es CHQ o EFE","Jose Herrera Cortez"]
[5,"REFERENCIA DE LA OPERACIÓN",9,"N","N/A","Sí","Numero de Referencia del Crédito a ser utilizada en el estado de cuenta (modalidad 1:1)",123456789]
[6,"DESCRIPCION OPERACIÓN",30,"A","N/A","Sí","Descripción de la Operación","texto libre"]
[7,"MODALIDAD DE PAGO",3,"A","N/A","Sí","Valores: CTA Cuenta mismo bancos - BAN cuenta otro bancos - CHQ Cheque de Gerencia - EFE Efectivo - TAR  TC Visa / Master Otros bancos - AME TC American Express-  V/M TC Visa / Master mismo Banco,  si el beneficiario no está registrado","CTA"]
[8,"NUMERO DE CUENTA ó TARJETA DE CRÉDITO",20,"N","N/A","Sí","Numero de la cuenta a acreditar. Obligatorio para Abono en cuenta mismo banco, otros bancos y tarjetas de crédito, si el beneficiario no está registrado ","Ejemplos:\n01080265007712345678 00000377003480751006 00005466205600823018"]
[9,"CODIGO DE BANCO",4,"N","N/A","Sí","Código del Banco"," 0108"]
[10,"FECHA VALOR",8,"N","N/A","Sí","Fecha de pago. Debe estar en formato yyyymmdd","20100530"]
[11,"MONTO",15,"N",2,"Sí","Monto del pago. Incluye los decimales. Monto expresado en ejemplo: Bs. 14.000,75",1400075]
[12,"MONEDA",3,"N","N/A","Sí","Moneda actual disponible Bs.","VEB"]
[13,"IMPUESTO RETENIDO",15,"N",2,"No","Monto del impuesto retebido en el documento asociado al pago","168009"]
[14,"EMAIL",40,"A","N/A","No","Dirección email del beneficiario","joseh.cortez@gmail.com"]
[15,"CELULAR",11,"N","N/A","No","Teléfono celular para envío de SMS","04141234567"]
[16,"NRO. VOLANTE",8,"N","N/A","Sí","identificación del pago en taquilla mediante cheque"]
[17,"COD RESPUESTA",2,"N","N/A","Sí","Será aportado por el Banco"]
[18,"DESCRIPCION",30,"A","N/A","Sí","Será aportado por el Banco"]
[19,"COD ERROR",2,"N","N/A","NO","Será aportado por el Banco"]
[20,"DESCRIPCION ERROR",30,"A","N/A","NO","Será aportado por el Banco"," "]
[null,"FILLER",{"$f":"1000-SUM(C69:C88)","v":698},null,null,"Sí","Uso futuro"]
["Documentos asociados al pago TIPO=03 (Opcional). Longitud 1000"]
[1,"IDENTIFICADOR REGISTRO",2,"A","N/A","Sí","Identificación de documentos. Puede haber mas d eun (1) dpcumento por cada pago","03"]
[{"$f":"A91+1","v":2},"NÚMERO DE FACTURA O DOCUMENTO.",20,"A","N/A","Sí","Número o referencia del documento","A-12348-PEDIDO"]
[{"$f":"A92+1","v":3},"MONTO FACTURA",15,"A",2,"Sí","Monto original del documento",1400075]
[{"$f":"A93+1","v":4},"MONEDA",3,"N","N/A","Sí","Moneda actual disponible Bs.","VEB"]
[{"$f":"A94+1","v":5},"FECHA FACTURA",8,"N","N/A","Sí","Fecha del documento / factura.   yyyy/mm/dd","2010/04/27"]
[{"$f":"A95+1","v":6},"IMPUESTO RETENIDO",15,"N",2,"No","Monto del impuesto retebido en la factura","168009"]
[null,"FILLER",{"$f":"1000-(SUM(C91:C96))","v":937}," "," ","Sí","Uso futuro"]
[null,"• Código respuesta"]
[null,"• Descripción respuesta"]
[]
["nota: los campos señalados en gris, por el momento no serán validados por el aplicativo"]
["           los campos resaltados en verde, serán generados por el Banco"]
["  Observaciones:"]
[null,"Debe ser un archivo de texto."]
[null,"Los campos numéricos(N), deben ir alineados a la derecha y completados con ceros a la izquierda."]
[null,"Los campos alfanuméricos(A), deben ir alineados a la izquierda."]
[null,"Caracteres y dígitos permitidos:"]
[null,"Alfanuméricos(A):  /abcdefghijklmnopqrstuvwxyz ABCDEFGHIJKLMNOPQRSTUVWXYZ."]
[null,"Numéricos(N):  0123456789."]
[null,"Cada registro debe terminar con CR(Carrige Return), LF(Line Feed)."]

{"sheet":"BANCOS","index":18,"n_rows":43,"n_cols":3,"rows_kept":43,"cut":false,"hidden":false,"merged":[[6,1,6,2]]}
[]
[]
[]
[]
[]
[1,1]
[null,"INSTITUCIONES FINANCIERAS ADSCRITAS\nA LA CÁMARA DE COMPENSACIÓN ELECTRÓNICA"]
[]
[null,"CÓDIGO","BANCO"]
[null,"0001"," BANCO CENTRAL DE VENEZUELA"]
[null,"0003"," BANCO INDUSTRIAL DE VENEZUELA, C.A."]
[null,"0008"," BANCO GUAYANA, C.A."]
[null,"0102"," BANCO DE VENEZUELA S.A.C.A. BANCO UNIVERSAL"]
[null,"0104"," VENEZOLANO DE CRÉDITO, S.A. BANCO UNIVERSAL"]
[null,"0105"," BANCO MERCANTIL, C.A. S.A.C.A. BANCO UNIVERSAL"]
[null,"0108"," BANCO PROVINCIAL, S.A. BANCO UNIVERSAL"]
[null,"0114"," BANCO DEL CARIBE, C.A. BANCO UNIVERSAL"]
[null,"0115"," BANCO EXTERIOR, C.A. BANCO UNIVERSAL"]
[null,"0116"," BANCO OCCIDENTAL DE DESCUENTO BANCO UNIVERSAL, C.A. S.A.C.A"]
[null,"0121"," CORP BANCA , C.A. BANCO UNIVERSAL"]
[null,"0128"," BANCO CARONI, C.A. BANCO UNIVERSAL"]
[null,"0134"," BANESCO BANCO UNIVERSAL S.A.C.A."]
[null,"0137"," BANCO SOFITASA BANCO UNIVERSAL, C.A."]
[null,"0138"," BANCO PLAZA, C.A."]
[null,"0146"," BANCO DE LA GENTE EMPRENDEDORA BANGENTE, C.A."]
[null,"0149"," BANCO DEL PUEBLO SOBERANO, C.A. BANCO DE DESARROLLO"]
[null,"0151"," BFC BANCO FONDO COMUN C.A. BANCO UNIVERSAL"]
[null,"0156"," 100% BANCO, BANCO COMERCIAL, C.A."]
[null,"0157"," DEL SUR BANCO UNIVERSAL, C.A."]
[null,"0163"," BANCO DEL TESORO, C.A. BANCO UNIVERSAL"]
[null,"0166"," BANCO AGRICOLA DE VENEZUELA, C.A. BANCO UNIVERSAL"]
[null,"0168"," BANCRECER S.A. BANCO DE DESARROLLO"]
[null,"0169"," MI BANCO, BANCO DE DESARROLLO, C.A."]
[null,"0171"," BANCO ACTIVO, C.A. BANCO COMERCIAL"]
[null,"0172"," BANCAMICA, BANCO MICROFINANCIERO C.A. "]
[null,"0173"," BANCO INTERNACIONAL DE DESARROLLO, C.A."]
[null,"0174"," BANPLUS BANCO COMERCIAL, C.A."]
[null,"0175"," BANCO BICENTENARIO BANCO UNIVERSAL, C.A."]
[null,"0176"," NOVO BANCO, S.A. SUCURSAL VENEZUELA BANCO UNIVERSAL "]
[null,"0177"," BANCO DE LA FUERZA ARMADA NACIONAL BOLIVARIANA, B.U. "]
[null,"0190"," CITIBANK N.A."]
[null,"0191"," BANCO NACIONAL CRÉDITO, C.A. BANCO UNIVERSAL"]
[null,"0601"," INSTITUTO MUNICIPAL DE CRÉDITO POPULAR"]

{"sheet":"Macros","index":19,"n_rows":175,"n_cols":8,"rows_kept":175,"cut":false,"hidden":true,"merged":[[160,7,164,9],[174,7,179,9],[108,6,113,8],[116,6,117,8],[121,6,121,8],[138,6,143,8],[2,6,5,8],[17,6,20,8],[32,6,37,8],[74,6,79,8],[90,6,94,8]]}
["Para Excel 2003:",null,null,null,null,null,"Volver al Menú"]
[]
[null,null,null,null,null,null,"Haga clic en la opción Herramientas del menú principal y seleccione las alternativas Macro – Seguridad."]
[]
[]
[]
[]
[]
[]
[]
[]
[]
[]
[]
[]
[]
[]
[null,null,null,null,null,null,"Verifique que el nivel de seguridad seleccionado sea Medio, en caso contrario tilde éste y presione el botón  Aceptar."]
[]
[]
[]
[]
[]
[]
[]
[]
[]
[]
[]
[]
[]
[]
[null,null,null,null,null,null,"Luego cierre la plantilla y vuelva abrir de forma habitual, visualice la pantalla de Advertencia de Seguridad que aparece con varias opciones, de las cuales seleccione la que indica Habilitar Macros. "]
[]
[]
[]
[]
[]
[]
[]
[]
[]
[]
[]
[]
[]
[null,null,null,null,null,null,"Volver al Menú"]
[]
[]
[]
[]
[]
[]
[]
[]
[]
[]
[]
[]
[]
[]
[]
[]
[]
[]
[]
[]
[]
[]
[]
[]
["Para Excel 2007:",null,null,null,null,null,"Volver al Menú"]
[]
[]
[null,null,null,null,null,null,"Haga clic en el botón de Office (señalado) y luego en el botón Opciones de Excel."]
[]
[]
[]
[]
[]
[]
[]
[]
[]
[]
[]
[]
[]
[]
[]
[null,null,null,null,null,null,"Presione el botón “Centro de Confianza” y luego “Configuración del Centro de Confianza”"]
[]
[]
[]
[]
[]
[]
[]
[]
[]
[]
[]
[]
[]
[]
[]
[]
[]
[null,null,null,null,null,null,"Haga clic en el botón “Configuración de Macros”, luego seleccione la opción “Habilitar todas las Macros. Seguidamente, presione el botón Aceptar de esta pantalla y todas las anteriores."]
[]
[]
[]
[]
[]
[]
[]
[null,null,null,null,null,null,"Seguidamente, cierre la plantilla y vuelva abrir de forma habitual."]
[]
[]
[]
[]
[null,null,null,null,null,null,"Volver al Menú"]
[]
[]
[]
[]
[]
[]
[]
[]
[]
[]
[]
[]
[]
[]
["Para Excel 2010:",null,null,null,null,null,"Volver al Menú"]
[]
[null,null,null,null,null,null,"Haga clic en el menú Archivo y luego en Opciones."]
[]
[]
[]
[]
[]
[]
[]
[]
[]
[]
[]
[]
[]
[]
[]
[]
[]
[]
[]
[]
[]
[null,null,null,null,null,null,null,"Presione el botón “Centro de Confianza” y luego “Configuración del Centro de Confianza”"]
[]
[]
[]
[]
[]
[]
[]
[]
[]
[]
[]
[]
[]
[null,null,null,null,null,null,null,"Haga clic en el botón “Configuración de Macros”, luego seleccione la opción “Habilitar todas las Macros. Seguidamente, presione el botón Aceptar de esta pantalla y todas las anteriores."]

{"sheet":"BANCOSB","index":20,"n_rows":43,"n_cols":3,"rows_kept":43,"cut":false,"hidden":false,"merged":[[6,1,6,2]]}
[]
[]
[]
[]
[]
[1,1]
[null,"INSTITUCIONES FINANCIERAS ADSCRITAS\nA LA CÁMARA DE COMPENSACIÓN ELECTRÓNICA"]
[]
[null,"CÓDIGO","BANCO"]
[null,"0001"," BANCO CENTRAL DE VENEZUELA"]
[null,"0003"," BANCO INDUSTRIAL DE VENEZUELA, C.A."]
[null,"0008"," BANCO GUAYANA, C.A."]
[null,"0102"," BANCO DE VENEZUELA S.A.C.A. BANCO UNIVERSAL"]
[null,"0104"," VENEZOLANO DE CRÉDITO, S.A. BANCO UNIVERSAL"]
[null,"0105"," BANCO MERCANTIL, C.A. S.A.C.A. BANCO UNIVERSAL"]
[null,"0108"," BANCO PROVINCIAL, S.A. BANCO UNIVERSAL"]
[null,"0114"," BANCO DEL CARIBE, C.A. BANCO UNIVERSAL"]
[null,"0115"," BANCO EXTERIOR, C.A. BANCO UNIVERSAL"]
[null,"0116"," BANCO OCCIDENTAL DE DESCUENTO BANCO UNIVERSAL, C.A. S.A.C.A"]
[null,"0121"," CORP BANCA , C.A. BANCO UNIVERSAL"]
[null,"0128"," BANCO CARONI, C.A. BANCO UNIVERSAL"]
[null,"0134"," BANESCO BANCO UNIVERSAL S.A.C.A."]
[null,"0137"," BANCO SOFITASA BANCO UNIVERSAL, C.A."]
[null,"0138"," BANCO PLAZA, C.A."]
[null,"0146"," BANCO DE LA GENTE EMPRENDEDORA BANGENTE, C.A."]
[null,"0149"," BANCO DEL PUEBLO SOBERANO, C.A. BANCO DE DESARROLLO"]
[null,"0151"," BFC BANCO FONDO COMUN C.A. BANCO UNIVERSAL"]
[null,"0156"," 100% BANCO, BANCO COMERCIAL, C.A."]
[null,"0157"," DEL SUR BANCO UNIVERSAL, C.A."]
[null,"0163"," BANCO DEL TESORO, C.A. BANCO UNIVERSAL"]
[null,"0166"," BANCO AGRICOLA DE VENEZUELA, C.A. BANCO UNIVERSAL"]
[null,"0168"," BANCRECER S.A. BANCO DE DESARROLLO"]
[null,"0169"," MI BANCO, BANCO DE DESARROLLO, C.A."]
[null,"0171"," BANCO ACTIVO, C.A. BANCO COMERCIAL"]
[null,"0172"," BANCAMICA, BANCO MICROFINANCIERO C.A. "]
[null,"0173"," BANCO INTERNACIONAL DE DESARROLLO, C.A."]
[null,"0174"," BANPLUS BANCO COMERCIAL, C.A."]
[null,"0175"," BANCO BICENTENARIO BANCO UNIVERSAL, C.A."]
[null,"0176"," NOVO BANCO, S.A. SUCURSAL VENEZUELA BANCO UNIVERSAL "]
[null,"0177"," BANCO DE LA FUERZA ARMADA NACIONAL BOLIVARIANA, B.U. "]
[null,"0190"," CITIBANK N.A."]
[null,"0191"," BANCO NACIONAL CRÉDITO, C.A. BANCO UNIVERSAL"]
[null,"0601"," INSTITUTO MUNICIPAL DE CRÉDITO POPULAR"]

{"sheet":"Hoja3","index":21,"n_rows":2,"n_cols":1,"rows_kept":2,"cut":false,"hidden":true,"merged":[]}
["                                                            *  Nota preliminar  *\n\n                         (Este formulario es de uso Privado, y solo debe imprimirse si es necesario.)\n\nEste formulario requiere la activación de macros, para configurar las macros siga las instrucciones de acuerdo a la versión de Excel que tenga instalada en su equipo:\n\nExcel 2003:\n1) Haga clic en el menú Herramientas y, a continuación, en el sub menú Macro.  Seleccione la opción Seguridad\n2) Haga clic en Nivel de Seguridad, y seleccione el nivel de seguridad Medio.\n3) Luego cierre la plantilla y vuelva abrir de forma habitual, visualice que en la pantalla se muestre el  mensaje de Advertencia de Seguridad y a continuación haga clic en Habilitar todas las macros.\n\nExcel 2007:\n1) Haga clic en el botón de Microsoft Office y, a continuación, en Opciones de Excel.  \n2) Haga clic en Centro de confianza, en Configuración del Centro de confianza y, a continuación, en Configuración de Macros. \n3) Haga clic en la opción (Habilitar todas las macros), para permitir que se ejecuten todas las macros.\n\nExcel 2010:\n1) Haga clic en la pestaña Archivo y, a continuación apretamos el botón Opciones\n2) Haga clic en Centro de confianza y, a continuación, en Configuración del centro de confianza.\n3) Luego en el centro de confianza activamos la opción Configuración de macros y a continuación haga clic en la opción Habilitar todas las macros.\n"]
["AYUDA GENERAL:\n       * Presione Clic sobre el botón agregar filas, para  agregar mas registros.\n       * Presione Clic sobre el botón eliminar filas, para eliminar registros.\n\nNota: En caso de requerir eliminar filas alternas, por favor seleccione en la barra de Menú de excel,  la opción \"Vista\" y active la opción \"Titulos\", luego presione clic derecho en la fila que desea eliminar."]

{"sheet":"Ayuda_Benef","index":22,"n_rows":84,"n_cols":8,"rows_kept":84,"cut":false,"hidden":false,"merged":[[93,1,93,3],[93,5,93,8],[95,1,95,3],[95,5,95,8],[99,1,99,3],[99,5,99,8],[97,1,97,3],[97,5,97,8],[98,1,98,3],[98,5,98,8],[96,1,96,3],[96,5,96,8],[39,0,39,8],[45,7,46,7],[91,1,91,3],[91,5,91,8],[92,1,92,3],[92,5,92,8],[63,7,64,7],[76,0,76,8],[94,1,94,3],[94,5,94,8],[7,0,7,8],[8,0,8,8],[10,0,10,8],[15,7,16,7],[29,7,30,7],[38,0,38,8],[11,0,11,8],[27,0,27,8],[41,0,41,8],[61,0,61,8],[89,1,89,3],[89,5,89,8]]}
[]
[]
[]
[]
[]
[]
[]
["Formato Archivo Beneficiarios de Pago"]
["(Del Cliente al Banco)"]
[]
[]
["Registro de Detalle por cada Beneficiario TIPO=01. Longitud 250"]
[null,"Nombre del Campo","Longitud ","Tipo","Decimal","Requerido","Descripción/Valor","Ejemplo"]
[1,"TIPO REGISTRO",2,"N","N/A","Sí","Identificación de detalle. Pueden haber tantos registros de detalle como beneficiarios se requieran en el lote.","01"]
[{"$f":"A14+1","v":2},"NUMERO DE CONTRATO",17,"N",0,"SI","Numero de Contrato al cual el beneficiario se encotrará relacionado en el sistema","900012345678911001"]
[{"$f":"A15+1","v":3},"TIPO PERSONA (Beneficiario)",1,"A","N/A","Sí","Calificador (V-Venezolano,E-Extranjero ó P-Pasaporte)  Para el caso de RIF: Calificador (J-Juridico, G-Gobierno) ","J012345678     V006117681"]
[4,"NUMERO RIF/CI  (Beneficiario)",9,"N","N/A","Sí","Número RIF/CI"]
[5,"NOMBRE DEL BENEFICIARIO",60,"A","N/A","Sí","Nombre del Beneficiario del crédito. Obligatorio cuando el beneficiario no está registrado o si la modalidad de pago es CHQ o EFE","Jose Herrera Cortez"]
[6,"FORMA DE PAGO",3,"A","N/A","Sí","Valores: CTA Cuenta mismo bancos - BAN cuenta otro bancos - CHQ Cheque de Geencia - EFE Efectivo - TAR  TC Visa / Master Otros bancos - AME TC American Express-  V/M TC Visa / Master mismo Banco","CTA"]
[7,"NUMERO DE CUENTA ó TARJETA DE CRÉDITO",20,"N","N/A","Sí","Numero de la cuenta a acreditar. Obligatorio para Abono en cuenta mismo banco, otros bancos y tarjetas de crédito","Ejemplos:\n01080265007712345678 00000377003480751006 00005466205600823018"]
[8,"CODIGO DE BANCO",4,"N","N/A","Sí","Código del Banco"," 0108"]
[9,"STATUS BENEFICIARIO",2,"A","N/A","Sí","Indica el estado del beneficiario \"AC\" Activo \n\"IN\" inactivo","AC"]
[10,"MONTO MÁXIMO",15,"N",2,"Sí","Monto máximo en una operación de pago",1400000]
[11,"MONEDA",3,"N","N/A","Sí","Moneda actual disponible Bs.","VEB"]
[12,"EMAIL",40,"A","N/A","No","Dirección email del beneficiario","joseh.cortez@gmail.com"]
[13,"CELULAR",11,"N","N/A","No","Teléfono celular para envío de SMS","04141234567"]
[null,"FILLER",{"$f":"250-(SUM(C14:C26))","v":63}," "," ","Sí","Uso futuro"]
["Autorizados a retirar los pagos (opcional) TIPO=02. Longitud 250"]
[1,"IDENTIFICADOR REGISTRO",2,"A","N/A","Sí","Identificación de regisstro de Autorizados. Puede mas de un (1) autorizado por beneficiario.","02"]
[{"$f":"A29+1","v":2},"TIPO PERSONA  (Autorizado)",1,"A","N/A","Sí","Calificador (V-Venezolano,E-Extranjero ó P-Pasaporte)  Para el caso de RIF: Calificador (J-Juridico, G-Gobierno) ","J012345678     V006117681"]
[{"$f":"A30+1","v":3},"RIF/CI (Autorizado)",9,"N","N/A","Sí","Número RIF/CI"]
[{"$f":"A31+1","v":4},"NOMBRE DEL AUTORIZADO",60,"A","N/A","Sí","Nombre del Autorizado","Juan Pedro Gimenez"]
[{"$f":"A32+1","v":5},"STATUS DEL AUTORIZADO",2,"A","N/A","Sí","Indica la acción a realizar en el estado del autorizado \"AC\" Activar \n\"IN\" inactivar","AC"]
[null,"FILLER",{"$f":"250-(SUM(C29:C33))","v":176}," "," ","Sí","Uso futuro"]
[]
[]
[]
[]
["Formato Archivo Beneficiarios de Pago"]
[" (del Banco al Cliente)"]
[]
["Registro de Detalle por cada Beneficiario TIPO=01. Longitud 250"]
[null,"Nombre del Campo","Longitud ","Tipo","Decimal","Requerido","Descripción/Valor","Ejemplo"]
[1,"TIPO REGISTRO",2,"A","N/A","Sí","Identificación de detalle. Pueden haber tantos registros de detalle como beneficiarios se requieran en el lote.","01"]
[{"$f":"A44+1","v":2},"NUMERO DE CONTRATO",17,"N",0,"SI","Numero de Contrato al cual el beneficiario se encotrará relacionado en el sistema","900012345678911001"]
[{"$f":"A45+1","v":3},"TIPO PERSONA (Beneficiario)",1,"A","N/A","Sí","Calificador (V-Venezolano,E-Extranjero ó P-Pasaporte)  Para el caso de RIF: Calificador (J-Juridico, G-Gobierno) ","J012345678     V006117681"]
[4,"NUMERO RIF/CI (Beneficiario)",9,"N","N/A","Sí","Número RIF/CI"]
[5,"NOMBRE DEL BENEFICIARIO",60,"A","N/A","Sí","Nombre del Beneficiario del crédito. Obligatorio cuando el beneficiario no está registrado o si la modalidad de pago es CHQ o EFE","Jose Herrera Cortez"]
[6,"FORMA DE PAGO",3,"A","N/A","Sí","Valores: CTA Cuenta mismo bancos - BAN cuenta otro bancos - CHQ Cheque de Geencia - EFE Efectivo - TAR  TC Visa / Master Otros bancos - AME TC American Express-  V/M TC Visa / Master mismo Banco",123456789]
[7,"NUMERO DE CUENTA ó TARJETA DE CRÉDITO",20,"N","N/A","Sí","Numero de la cuenta a acreditar. Obligatorio para Abono en cuenta mismo banco, otros bancos y tarjetas de crédito","Ejemplos:\n01080265007712345678 00000377003480751006 00005466205600823018"]
[8,"CODIGO DE BANCO",4,"N","N/A","Sí","Código del Banco"," 0108"]
[9,"STATUS BENEFICIARIO",2,"A","N/A","Sí","Indica el estado del beneficiario \"AC\" Activo \n\"IN\" inactivo","AC"]
[10,"MONTO MÁXIMO",15,"N",2,"Sí","Monto máximo en una operación de pago",1400000]
[11,"MONEDA",3,"N","N/A","Sí","Moneda actual disponible Bs.","VEB"]
[12,"EMAIL",40,"A","N/A","No","Dirección email del beneficiario","joseh.cortez@gmail.com"]
[13,"CELULAR",11,"N","N/A","No","Teléfono celular para envío de SMS","04141234567"]
[{"$f":"A56+1","v":14},"COD RESPUESTA",2,"N","N/A",null,"Será aportado por el Banco"]
[15,"DESCRIPCION",30,"A","N/A",null,"Será aportado por el Banco"]
[16,"COD RECHAZO",2,"N","N/A",null,"Será aportado por el Banco"]
[17,"DESCRIPCION RECHAZO",30,"A","N/A",null,"Será aportado por el Banco"]
[null,"FILLER",{"$f":"250 - ( SUM(C44:C58))","v":31}," "," "]
["Autorizados a retirar los pagos (opcional) TIPO=02. Longitud 250"]
[1,"IDENTIFICADOR REGISTRO",2,"A","N/A","Sí","Identificación de regisstro de Autorizados. Puede mas de un (1) autorizado por beneficiario.","02"]
[{"$f":"A63+1","v":2},"TIPO PERSONA (Autorizado)",1,"A","N/A","Sí","Calificador (V-Venezolano,E-Extranjero ó P-Pasaporte)  Para el caso de RIF: Calificador (J-Juridico, G-Gobierno) ","J012345678     V006117681"]
[{"$f":"A64+1","v":3},"NUMERO RIF/CI (Autorizado)",9,"N","N/A","Sí","Número RIF/CI"]
[{"$f":"A65+1","v":4},"NOMBRE DEL AUTORIZADO",60,"A","N/A","Sí","Nombre del Autorizado","Juan Pedro Gimenez"]
[{"$f":"A66+1","v":5},"STATUS DEL AUTORIZADO",2,"A","N/A","Sí","Indica la acción. \"AC\" Activar \"IN\" Inactivar \n\"IN\" inactivo","AC"]
[null,"FILLER",{"$f":"250-(SUM(C63:C67))","v":176}," "," ","Sí","Uso futuro"]
["El archivo de respuesta tendrá la misma información, incorporando en el regsitro de encabezado y detalle:"]
[null,"• Código respuesta"]
[null,"• Descripción respuesta"]
[null,"• Código Rechazo"]
[null,"• Descripción  Rechazo"]
[]
["nota: los campos señalas en gris no serán validados por el aplicativo"]
[]
["  Observaciones:"]
[null,"Debe ser un archivo de texto."]
[null,"Los campos numéricos(N), deben ir alineados a la derecha y completados con ceros a la izquierda."]
[null,"Los campos alfanuméricos(A), deben ir alineados a la izquierda."]
[null,"Caracteres y dígitos permitidos:"]
[null,"Alfanuméricos(A):  /abcdefghijklmnopqrstuvwxyz ABCDEFGHIJKLMNOPQRSTUVWXYZ."]
[null,"Numéricos(N):  0123456789."]
[null,"Cada registro debe terminar con CR(Carrige Return), LF(Line Feed)."]